{"text_format":"3","workbook":"xlsx","n_sheets":3,"sheets":["分配方案","资金","各县区"],"read":"whole","date_system":"1900"}

{"sheet":"分配方案","index":0,"n_rows":27,"n_cols":10,"rows_kept":27,"merged":[[0,0,0,9],[4,0,7,0],[4,1,7,1],[4,2,5,2],[4,5,5,5],[4,6,5,6],[4,7,5,7],[6,2,7,2],[6,5,7,5],[6,6,7,6],[6,7,7,7],[8,0,23,0],[8,1,23,1],[8,2,9,2],[8,5,9,5],[8,6,9,6],[8,7,9,7],[10,2,19,2],[10,5,19,5],[10,6,19,6],[10,7,19,7],[18,8,19,8],[20,2,21,2],[20,5,21,5],[20,6,21,6],[20,7,21,7],[22,2,23,2],[22,5,23,5],[22,6,23,6],[22,7,23,7],[24,0,25,0],[24,1,25,1],[24,2,25,2],[24,5,25,5],[24,6,25,6],[24,7,25,7],[24,8,25,8]]}
["河源市2023年省促进经济高质量发展专项资金（市场监督管理—知识产权创造、运用和保护)"]
[{"$nulls":9},"单位：万元"]
["序号","专项名称","总资金","项目承担单位","资金 安排","任务要求/目标","任务性质","实施标准","工作量","备注"]
[1,"区域知识产权管理能力提升（50万元）",50,"河源高新区知识产权  协同运营中心",50,"在已建设的重点园区知识产权协同运营中心推进知识产权创造、运用、保护集成服务，支撑区域打造知识产权全链条生态系统，建设区域知识产权发展高地。","约束性任务","《广东省市场监督管理局关于加强广东省重点园区知识产权协同运营中心建设的通知》","支持在建的重点园区知识产权协同运营中心继续开展知识产权集成服务工作，包括但不限于推动开展高价值专利培育布局、知识产权运营转化、知识产权维权援助、建设知识产权信息服务平台等。在建设河源高新区知识产权协同运营中心的基础上，在河源市灯塔盆地农业高新技术产业示范区开展农业知识产权运营服务工作，搭建农业知识产权运营服务中心。"]
[2,"知识产权高质量创造和创新主体能力提升   （80万元）",60,"河源市众拓光电科技  有限公司",30,"围绕广东省重点培育发展的战略性支柱产业集群、战略性新兴产业集群，从每个产业中选取关键、核心领域技术点，支持我省企业开展精准高价值专利培育布局，加快创新驱动发展。","约束性任务","1.《国家知识产权局关于进一步提升专利申请质量的若干意见》\n2.《关于强化知识产权保护的若干措施》\n3.《关于培育发展战略性支柱产业集群和战略性新兴产业集群的意见》\n4.《广东省知识产权保护和运用“十四五”规划》","围绕双十产业，至少建设1家高价值专利培育布局中心，培育布局一批高价值专利"]
[{"$nulls":3},"广东星汇生物科技    有限公司",30,{"$nulls":3},"围绕双十产业，至少建设1家高价值专利培育布局中心，培育布局一批高价值专利"]
[null,null,20,"市市场监督管理局    （待分配）",9,"支持各地推动企业贯彻实施知识产权管理规范，提升企业知识产权制度运用能力。","约束性任务","1.《国家知识产权局办公室关于进一步提升企业知识产权管理体系贯标认证质量的通知》\n2.《国家知识产权局办公室关于规范知识产权管理体系贯标认证工作的通知》","企业知识产权能力提升，贯标企业数量保持稳定","拟组织开展第二批政策兑现工作。"]
[{"$nulls":3},"通过知识产权管理规范认证资助（5家企业，名单附后）",11,{"$nulls":3},"支持推动企业贯彻实施知识产权管理规范，提升企业知识产权制度运用能力。","精电（河源）显示技术有限公司,2万元；广东鑫达新材料科技有限公司,2万元；盛嘉伦橡塑（河源）有限公司,2万元；河源轩朗光电科技有限公司,2万元；广东埃纳生医学科技有限公司,3万元。"]
[3,"知识产权运用和商标、地理标志商标战略（200万元）",60,"河源广工大协同创新  研究院",30,"推动专利转化工作，促进全国高校院所、国有企业与我省中小微企业对接，建设“高校院所+产业”专利供需平台，组织对接活动，开展专利开放许可促进工作，实现专利转化专项计划中5个绩效目标按期达标。","约束性任务","《广东省落实专利转化专项计划  助力中小企业创新发展实施方案（2021-2023年）》","1.推动专利转化工作，促进全国高校院所、国有企业与当地战略性产业集群中小微企业对接，建设“高校院所+产业”专利供需平台，分区域、分产业组织开展不少于2场中小微企业专利转化对接活动；促成10项以上专利转化、许可等项目在河源落地实施，并依法在国家知识产权局登记备案。实现专利转化专项计划中5个绩效目标按期达标。                                 2.建设完善“高校院所+产业”专利供需平台，开展专利转化运营。                                                    3.开展知识产权“入园惠企”工作，联合金融机构在园区开展2场以上知识产权质押融资等专项对接交流活动及相关业务培训，促成不少于5项以上知识产权质押融资贷款。                                      4.开展专利开放许可促进工作，收集战略性产业集群企业开放许可专利需求，向省级专利开放许可试点信息发布平台推荐不少于5项开放许可专利信息等。"]
[{"$nulls":3},"广东权璟知识产权\n咨询管理有限公司",30,{"$nulls":3},"1.推动专利转化工作，促进全国高校院所、国有企业与当地涉农中小微企业对接，建设“高校院所+产业”专利供需平台，组织开展不少于2场高校院所与市内涉农中小微企业专利转化对接活动；促成5项以上专利转化、许可等项目在河源落地实施，并依法在国家知识产权局登记备案。实现专利转化专项计划中5个绩效目标按期达标。                                                         2.建立完善中小微企业涉农专利技术供需信息定向发布平台，开展专利转化运营。                                                        3.开展知识产权“入园惠企”工作，联合金融机构在园区开展2场以上知识产权质押融资等专项对接交流活动及相关业务培训，促成不少于5项以上知识产权质押融资贷款。                                                 4.开展专利开放许可促进工作，收集涉农企业开放许可专利需求，向省级专利开放许可试点信息发布平台推荐不少于5项开放许可专利信息等。"]
[null,null,100,"源城区市场监督管理局",10,"促进知识产权交易运营，培育和规范交易运营市场，培养专业人才，有条件地市可引入社会资本设立知识产权运营基金。持续推动知识产权质押融资提质扩容，开展知识产权质押融资助力重点企业纾困活动。积极推广知识产权保险。","约束性任务","《中国银保监会、国家知识产权局、国家版权局关于进一步加强知识产权质押融资工作的通知》","1.开展知识产权交易对接活动不少于1场，引入或培育知识产权交易运营实务人才。                                                                                  2.组织开展1次以上知识产权“入园惠企”及培训活动。有条件县区开展知识产权金融产品创新。推广知识产权保险，联合保险机构推广知识产权保险，完善原有知识产权保险产品，适时推出知识产权保险新品种。                                                         3.年度专利权和商标权质押融资金额实现30%以上增长。"]
[{"$nulls":3},"东源县市场监督管理局",10,{"$nulls":3},"1.开展知识产权交易对接活动不少于1场，引入或培育知识产权交易运营实务人才。                                                                                  2.组织开展1次以上知识产权“入园惠企”及培训活动。有条件县区开展知识产权金融产品创新。推广知识产权保险，联合保险机构推广知识产权保险，完善原有知识产权保险产品，适时推出知识产权保险新品种。                                                         3.年度专利权和商标权质押融资金额实现30%以上增长。"]
[{"$nulls":3},"和平县市场监督管理局",10,{"$nulls":3},"1.开展知识产权交易对接活动不少于1场，引入或培育知识产权交易运营实务人才。                                                                                  2.组织开展1次以上知识产权“入园惠企”及培训活动。有条件县区开展知识产权金融产品创新。推广知识产权保险，联合保险机构推广知识产权保险，完善原有知识产权保险产品，适时推出知识产权保险新品种。                                                         3.年度专利权和商标权质押融资金额实现30%以上增长。"]
[{"$nulls":3},"龙川县市场监督管理局",10,{"$nulls":3},"1.开展知识产权交易对接活动不少于1场，引入或培育知识产权交易运营实务人才。                                                                                  2.组织开展1次以上知识产权“入园惠企”及培训活动。有条件县区开展知识产权金融产品创新。推广知识产权保险，联合保险机构推广知识产权保险，完善原有知识产权保险产品，适时推出知识产权保险新品种。                                                         3.年度专利权和商标权质押融资金额实现30%以上增长。"]
[{"$nulls":3},"紫金县市场监督管理局",10,{"$nulls":3},"1.开展知识产权交易对接活动不少于1场，引入或培育知识产权交易运营实务人才。                                                                                  2.组织开展1次以上知识产权“入园惠企”及培训活动。有条件县区开展知识产权金融产品创新。推广知识产权保险，联合保险机构推广知识产权保险，完善原有知识产权保险产品，适时推出知识产权保险新品种。                                                         3.年度专利权和商标权质押融资金额实现30%以上增长。"]
[{"$nulls":3},"连平县市场监督管理局",10,{"$nulls":3},"1.开展知识产权交易对接活动不少于1场，引入或培育知识产权交易运营实务人才。                                                                                  2.组织开展1次以上知识产权“入园惠企”及培训活动。有条件县区开展知识产权金融产品创新。推广知识产权保险，联合保险机构推广知识产权保险，完善原有知识产权保险产品，适时推出知识产权保险新品种。                                                         3.年度专利权和商标权质押融资金额实现30%以上增长。"]
[{"$nulls":3},"市市场监督管理局   江东新区分局",10,{"$nulls":3},"1.开展知识产权交易对接活动不少于1场，引入或培育知识产权交易运营实务人才。                                                                                  2.组织开展1次以上知识产权“入园惠企”及培训活动。有条件县区开展知识产权金融产品创新。推广知识产权保险，联合保险机构推广知识产权保险，完善原有知识产权保险产品，适时推出知识产权保险新品种。                                                         3.年度专利权和商标权质押融资金额实现30%以上增长。"]
[{"$nulls":3},"市市场监督管理局    高新区分局",10,{"$nulls":3},"1.开展知识产权交易对接活动不少于1场，引入或培育知识产权交易运营实务人才。                                                                                  2.组织开展1次以上知识产权“入园惠企”及培训活动。有条件县区开展知识产权金融产品创新。推广知识产权保险，联合保险机构推广知识产权保险，完善原有知识产权保险产品，适时推出知识产权保险新品种。                                                         3.年度专利权和商标权质押融资金额实现30%以上增长。"]
[{"$nulls":3},"市市场监督管理局    （待分配）",13.42,{"$nulls":3},"确保知识产权质押融资风险补偿基金正常运作，将商标权质押融资纳入补偿基金保障范围。开展知识产权质押融资评估、保险等费用补贴及奖励等工作。","拟组织开展第二批政策兑现工作。"]
[{"$nulls":3},"  知识产权质押融资评估费用资助（3家企业，名单附后） ",6.58,{"$nulls":4},"广东源友特种玻璃有限公司，2.52万元；广东达孚电子有限公司，2.42万元；河源市圣祥光电科技有限公司，1.64万元。"]
[null,null,20,"源城区市场监督管理局",10,"开展商标品牌指导站建设，通过行政指导、普法宣传等各种方式，为辖区企业提供商标注册辅导、商标规范使用提示、商标维权援助、自主品牌培育、商标运用指引等服务。","约束性任务",null,"1.建设至少1个商标品牌培育指导站点。                     \n2.为至少10家企业提供商标品牌相关服务。                                       \n3.制定商标品牌培育指导站工作规范。"]
[{"$nulls":3},"市市场监督管理局    江东新区分局",10,{"$nulls":3},"1.建设至少1个商标品牌培育指导站点。                     \n2.为至少10家企业提供商标品牌相关服务。                                       \n3.制定商标品牌培育指导站工作规范。"]
[null,null,20,"华研（广州）知识产权运营服务有限公司",10,"强化地理标志品牌运用推广，宣传展示地理标志运用促进成效，突出地理标志的社会效益、经济效益和生态效益。鼓励专利代理、商标代理等各类知识产权服务机构，拓展地理标志服务业务。推广地理标志助力乡村振兴经验模式，推动产业发展规模不断扩大，支持乡村产业发展。","约束性任务",null,"1.组织至少1场地理标志宣传推介会、研讨会、讲座等活动推广地理标志产品。\n2.组织地理标志产品运营者积极参加国家重点展会和知识产权大型展会，以及“中国品牌日”等活动。\n3.支持至少1家知识产权服务机构开展地理标志产品商标注册业务，向不少于15户以上的企业开展地理标志产品信息推送。\n4.培养本地区地理标志专业人才队伍，组织至少1场地理标志产品、商标运用促进培训。\n5.至少推广1个以上本地区地理标志产品与生产经营企业、合作社、农户对接。至少2次以上在市级以上主流媒体宣传报道地理标志运用促进成效。至少推动1个以上本地区地理标志产品与电商企业对接，建立电商企业销售地理标志产品渠道。"]
[{"$nulls":3},"广州中新知识产权\n服务有限公司",10,{"$nulls":3},"1.组织至少1场地理标志宣传推介会、研讨会、讲座等活动推广地理标志产品。\n2.组织地理标志产品运营者积极参加国家重点展会和知识产权大型展会，以及“中国品牌日”等活动。\n3.支持至少1家知识产权服务机构开展地理标志产品商标注册业务，向不少于15户以上的企业开展地理标志产品信息推送。\n4.培养本地区地理标志专业人才队伍，组织至少1场地理标志产品、商标运用促进培训。\n5.至少推广1个以上本地区地理标志产品与生产经营企业、合作社、农户对接。至少2次以上在市级以上主流媒体宣传报道地理标志运用促进成效。至少推动1个以上本地区地理标志产品与电商企业对接，建立电商企业销售地理标志产品渠道。"]
[4,"知识产权公共服务及  人才培养           （15万元）",15,"市市场监督管理局                   ",3,"支持地市开展中小学知识产权教育工作。","约束性任务","《国家知识产权局 教育部关于开展全国中小学知识产权教育试点示范工作的通知》","在不少于3所中小学开展知识产权进校园活动。支持知识产权试点示范学校开展中小学知识产权教育推广普及工作、青少年创新大赛等活动。"]
[{"$nulls":3},"                2022年度市级知识产权试点示范学校后补助   （6家学校，名单附后）",12,{"$nulls":4},"广东省连平县连平中学,1万元；龙川县田家炳中学,1万元；龙川县老隆镇第二小学,1万元；和平县下车镇中心小学(和平县下车镇香港深圳社团总会中心小学),3万元；连平县第一小学,3万元；龙川县实验小学,3万元。"]
[null,null,345]

{"sheet":"资金","index":1,"n_rows":18,"n_cols":24,"rows_kept":18,"merged":[[0,0,0,23],[1,0,1,23],[2,0,3,0],[2,1,3,1],[2,2,3,2],[2,3,3,3],[2,4,2,19],[2,23,3,23],[5,0,6,0],[5,1,6,1],[5,3,6,3],[7,0,10,0],[7,1,10,1],[7,3,10,3],[17,1,17,2]]}
["河源市2023年省促进经济高质量发展专项资金（市场监督管理—知识产权创造、运用和保护) 明细分配表"]
["单位：万元"]
["序号","专项名称","任务要求目标","合计","资金分配方案",{"$nulls":18},"备注"]
[{"$nulls":4},"市市场监督管理局","江东新区分局","高新区分局","源城区市场监督管理局","东源县市场监督管理局","和平县市场监督管理局","龙川县市场监督管理局","紫金县市场监督管理局","连平县市场监督管理局","河源高新区知识产权协同运营中心","河源市众拓光电科技有限公司","广东星汇生物科技    有限公司","河源广工大协同创新研究院","广东权璟知识产权\n咨询管理有限公司","华研（广州）知识产权运营服务有限公司","广州中新知识产权\n服务有限公司","河源市知识产权协会","横琴国际知识产权交易中心有限公司","河源市华标知识产权代理事务所（普通合伙）"]
[1,"区域知识产权管理能力提升","在已建设的重点园区知识产权协同运营中心推进知识产权创造、运用、保护集成服务，支撑区域打造知识产权全链条生态系统，建设区域知识产权发展高地。",50,{"$nulls":9},50]
[2,"知识产权高质量创造和创新主体能力提升","围绕广东省重点培育发展的战略性支柱产业集群、战略性新兴产业集群，从每个产业中选取关键、核心领域技术点，支持我省企业开展精准高价值专利培育布局，加快创新驱动发展。",80,{"$nulls":10},30,30]
[null,null,"支持各地推动企业贯彻实施知识产权管理规范，提升企业知识产权制度运用能力。",null,20,{"$nulls":18},"①13.42万元待分配，拟组织开展第二批政策兑现工作；②6.58万元用于对通过知识产权管理规范认证企业资助"]
[3,"知识产权运用和商标、地理标志商标战略","推动专利转化工作，促进全国高校院所、国有企业与我省中小微企业对接，建设“高校院所+产业”专利供需平台，组织对接活动，开展专利开放许可促进工作，实现专利转化专项计划中5个绩效目标按期达标。",200,{"$nulls":12},30,30]
[null,null,"促进知识产权交易运营，培育和规范交易运营市场，培养专业人才，有条件地市可引入社会资本设立知识产权运营基金。持续推动知识产权质押融资提质扩容，开展知识产权质押融资助力重点企业纾困活动。积极推广知识产权保险。",null,20,10,10,10,10,10,10,10,10,{"$nulls":10},"①9万元待分配，拟组织开展第二批政策兑现工作；         ②11万元用于知识产权质押融资评估费用资助"]
[null,null,"开展商标品牌指导站建设，通过行政指导、普法宣传等各种方式，为辖区企业提供商标注册辅导、商标规范使用提示、商标维权援助、自主品牌培育、商标运用指引等服务。",null,null,10,null,10]
[null,null,"强化地理标志品牌运用推广，宣传展示地理标志运用促进成效，突出地理标志的社会效益、经济效益和生态效益。鼓励专利代理、商标代理等各类知识产权服务机构，拓展地理标志服务业务。推广地理标志助力乡村振兴经验模式，推动产业发展规模不断扩大，支持乡村产业发展。",{"$nulls":15},10,10]
[4,"知识产权公共服务及人才培养","支持地市开展中小学知识产权教育工作。",15,15,{"$nulls":18},"①3万元拟分配市市场监督管理局，在不少于3所中小学开展知识产权进校园活动；  ②12万元用于2022年度市级知识产权试点示范学校后补助"]
[5,"知识产权纠纷多元化解决","开展知识产权纠纷多元化解工作，推动知识产权调解仲裁公证等工作，及时化解知识产权纠纷。",20,{"$nulls":16},20]
[6,"知识产权纠纷行政裁决效能提升","推动专利侵权纠纷行政裁决与市场监管综合行政执法融合，加强知识产权行政裁决队伍专业化、职业化建设，加大专利侵权纠纷行政裁决力度，提升行政裁决效能。",30,null,null,10,{"$nulls":4},10,10]
[7,"强化展会、专业市场、电商平台知识产权保护","完善重点展会知识产权保护机制，进驻重点展会开展知识产权保护工作；建立健全专业市场知识产权纠纷快速处理机制等保护工作机制，加强专业市场知识产权保护；健全电商领域知识产权保护工作机制，加强电商领域知识产权执法保护和纠纷处理，净化电商领域知识产权保护环境。",30,null,6,null,6,6,6,6]
[8,"内外贸一体化企业知识产权海外保护能力提升","支持广东省内外贸一体化企业完善知识产权国际合规管理制度，开展出口产品知识产权风险排查预警、加强海外知识产权布局以及海外维权等工作。",27,{"$nulls":17},27]
[9,"地理标志产品培育、地理标志专用标志使用","挖掘地理标志资源，培育地理标志产品；支持地理标志专用标志使用，扩大地理标志专用标志使用覆盖面。",20,{"$nulls":18},20]
[null,"合计",null,{"$f":"SUM(D5:D17)","v":472},{"$f":"SUM(E5:E17)","v":55},26,20,26,16,16,16,20,20,50,30,30,30,30,10,10,20,27,20]

{"sheet":"各县区","index":2,"n_rows":48,"n_cols":7,"rows_kept":48,"merged":[[1,0,1,6],[2,0,3,0],[2,1,3,1],[2,2,3,2],[2,3,3,3],[2,4,3,4],[2,5,3,5],[2,6,3,6],[4,0,9,0],[4,1,9,1],[6,2,7,2],[6,3,7,3],[9,2,9,4],[10,0,14,0],[10,1,14,1],[12,2,13,2],[12,3,13,3],[14,2,14,4],[15,0,21,0],[15,1,21,1],[21,2,21,4],[22,0,25,0],[22,1,25,1],[25,2,25,4],[26,0,31,0],[26,1,31,1],[29,2,30,2],[29,3,30,3],[31,2,31,4],[32,0,34,0],[32,1,34,1],[34,2,34,4],[35,0,40,0],[35,1,40,1],[37,2,39,2],[37,3,39,3],[40,2,40,4],[41,0,42,0],[41,1,42,1],[42,2,42,4],[43,0,46,0],[43,1,46,1],[44,2,45,2],[44,3,45,3],[46,2,46,4],[47,0,47,4]]}
["附表"]
["河源市2023年省促进经济高质量发展专项资金（市场监督管理—知识产权创造、运用和保护)分配总表"]
["序号","区域","项目名称\n（使用方向）","专题类型","单位名称","2023年省下放地市促进经济高质量发展专项资金安排  (万元)","备注"]
[]
[1,"市局","知识产权高质量创造和创新主体能力提升","企业知识产权贯标推进","市市场监督管理局",9,"（待分配）"]
[null,null,"知识产权运用","知识产权金融创新促进计划项目","市市场监督管理局",13.42,"（待分配）"]
[null,null,"商标、地理标志商标战略","地理标志产品运营促进","华研（广州）知识产权运营服务有限公司",10]
[{"$nulls":4},"广州中新知识产权\n服务有限公司",10]
[null,null,"知识产权公共服务及  人才培养","中小学知识产权教育","市市场监督管理局",3]
[null,null,"市局小计",null,null,45.42]
[2,"江东新区","知识产权金融创新促进计划项目","知识产权金融创新促进计划项目","市市场监督管理局江东新区分局",10]
[null,null,"商标品牌培育指导站建设","商标品牌培育指导站建设","市市场监督管理局江东新区分局",10]
[null,null,"企业知识产权贯标推进","通过知识产权管理规范认证资助","河源轩朗光电科技有限公司",2]
[{"$nulls":4},"广东埃纳生医学科技有限公司",3]
[null,null,"江东新区小计",null,null,{"$f":"SUM(F11:F14)","v":25}]
[3,"高新区","区域知识产权管理能力提升","搭建农业知识产权运营服务中心","河源高新区知识产权协同运营中心",50]
[null,null,"知识产权高质量创造和创新主体能力提升","高价值专利培育布局中心建设","河源市众拓光电科技有限公司",30]
[null,null,"知识产权运用","专利转化实施","河源广工大协同创新研究院",30]
[null,null,"知识产权金融创新促进计划项目","知识产权金融创新促进计划项目","市市场监督管理局高新区分局",10]
[null,null,"企业知识产权贯标推进","通过知识产权管理规范认证资助","盛嘉伦橡塑（河源）有限公司",2]
[null,null,"知识产权提质增效资助项目","知识产权质押融资资助","河源市圣祥光电科技有限公司",1.64]
[null,null,"高新区小计",null,null,{"$f":"SUM(F16:F21)","v":123.64}]
[4,"源城区","知识产权金融创新促进计划项目","知识产权金融创新促进计划项目","源城区市场监督管理局",10]
[null,null,"商标品牌培育指导站建设","商标品牌培育指导站建设","源城区市场监督管理局",10]
[null,null,"企业知识产权贯标推进","通过知识产权管理规范认证资助","精电（河源）显示技术有限公司",2]
[null,null,"源城区小计",null,null,{"$f":"SUM(F23:F25)","v":22}]
[5,"东源县","知识产权运用","专利转化实施","广东权璟知识产权咨询管理有限公司",30]
[null,null,"知识产权金融创新促进计划项目","知识产权金融创新促进计划项目","东源县市场监督管理局",10]
[null,null,"企业知识产权贯标推进","通过知识产权管理规范认证资助","广东鑫达新材料科技有限公司",2]
[null,null,"知识产权提质增效资助项目","知识产权质押融资资助","广东源友特种玻璃有限公司",2.52]
[{"$nulls":4},"广东达孚电子有限公司",2.42]
[null,null,"东源县小计",null,null,{"$f":"SUM(F27:F31)","v":46.94}]
[6,"和平县","知识产权金融创新促进计划项目","知识产权金融创新促进计划项目","和平县市场监督管理局",10]
[null,null,"知识产权提质增效资助项目","2022年度知识产权教育示范试点学校资助","和平县下车镇中心小学(和平县下车镇香港深圳社团总会中心小学)",3]
[null,null,"和平县小计",null,null,{"$f":"SUM(F33:F34)","v":13}]
[7,"龙川县","知识产权高质量创造和创新主体能力提升 ","高价值专利培育布局中心建设","广东星汇生物科技有限公司",30]
[null,null,"知识产权金融创新促进计划项目","知识产权金融创新促进计划项目","龙川县市场监督管理局",10]
[null,null,"知识产权提质增效资助项目","2022年度知识产权教育示范试点学校资助","龙川县实验小学",3]
[{"$nulls":4},"龙川县田家炳中学",1]
[{"$nulls":4},"龙川县老隆镇第二小学",1]
[null,null,"龙川县小计",null,null,{"$f":"SUM(F36:F40)","v":45}]
[8,"紫金县","知识产权金融创新促进计划项目","知识产权金融创新促进计划项目","紫金县市场监督管理局",10]
[null,null,"紫金县小计",null,null,{"$f":"SUM(F42:F42)","v":10}]
[9,"连平县","知识产权金融创新促进计划项目","知识产权金融创新促进计划项目","连平县市场监督管理局",10]
[null,null,"知识产权提质增效资助项目","2022年度知识产权教育示范试点学校资助","连平县第一小学",3]
[{"$nulls":4},"广东省连平县连平中学",1]
[null,null,"连平县小计",null,null,{"$f":"SUM(F44:F46)","v":14}]
["合计",{"$nulls":4},{"$f":"F10+F15+F22+F26+F32+F35+F41+F43+F47","v":345}]